bitfinex/quotes_ETHUSD_20251116
["timestamp","ask_amount","ask_price","bid_price","bid_amount"]
[1763310514179,0.4543,3082.6,3080.8,7.87190647]
[1763310514388,0.4543,3082.6,3080.9,1.1337408]
[1763310514605,0.4543,3082.6,3080.8,7.87190647]
[1763310514800,0.4543,3082.6,3080.9,1.76099315]
[1763310515178,0.4543,3082.6,3080.5,0.001]
[1763310515179,0.1854,3081.0,3080.5,0.001]
[1763310515574,0.4517,3080.9,3080.5,0.001]
[1763310516111,0.4517,3080.9,3080.5,3.24718684]
[1763310516324,0.1854,3081.4,3080.5,6.4934131]
[1763310516478,0.4517,3081.3,3080.5,0.001]
[1763310516804,0.4517,3081.3,3080.5,3.24720814]
[1763310517283,0.4517,3081.3,3080.5,0.001]
[1763310518382,0.1854,3081.4,3080.5,0.001]
[1763310518583,0.4517,3081.3,3080.5,0.001]
[1763310520484,0.1854,3081.4,3080.5,0.001]
[1763310520693,0.6371,3081.8,3080.5,0.71672786]
[1763310521214,0.4517,3081.7,3080.5,0.71672786]
[1763310521395,0.4517,3081.7,3080.6,6.49224176]
[1763310521600,0.4517,3081.7,3080.5,0.001]
[1763310521786,0.405504,3081.6,3080.5,0.001]
[1763310521991,0.4517,3081.7,3080.5,0.001]
[1763310522194,0.4517,3081.6,3080.5,3.24720534]
[1763310522406,0.4517,3081.6,3080.5,0.001]
[1763310522721,0.405504,3081.5,3080.5,0.001]
[1763310522883,0.405504,3081.5,3079.0,0.1667]
[1763310522884,0.405504,3081.5,3079.1,1.1337408]
[1763310523081,0.1854,3081.8,3079.2,0.43815485]
[1763310523082,0.4517,3081.4,3079.2,0.43815485]
[1763310523297,0.4517,3081.4,3079.1,0.405504]
[1763310523518,0.4517,3081.4,3079.2,6.49519354]
[1763310523725,0.4517,3081.4,3079.1,3.24769422]
[1763310523910,0.405504,3081.3,3078.5,9.74500566]
[1763310524109,0.405504,3081.3,3078.6,0.97460057]
[1763310524309,0.405504,3081.1,3078.6,2.10834137]
[1763310524509,0.405504,3081.1,3078.6,1.1337408]
[1763310524727,0.4517,3081.0,3078.6,1.1337408]
[1763310525086,0.1854,3079.0,3077.9,0.1667]
[1763310525287,0.4517,3078.9,3076.9,0.68036841]
[1763310525525,0.4517,3078.9,3076.9,0.04408003]
[1763310525912,0.4517,3078.9,3077.6,3.24925452]
[1763310526236,0.4517,3078.9,3077.4,3.24939871]
[1763310526422,0.4517,3078.9,3076.9,0.04408003]
[1763310526798,0.4517,3078.9,3077.5,3.24938902]
[1763310526999,0.4517,3078.9,3077.6,3.24927517]
[1763310527221,0.4517,3078.9,3076.9,0.04408003]
[1763310527399,0.4517,3078.9,3076.9,3.29400216]
[1763310527627,0.4517,3078.9,3077.1,3.2497363]
[1763310527825,0.4517,3078.9,3077.3,3.24959509]
[1763310528029,0.4517,3078.9,3077.4,3.24949287]
[1763310528341,0.1854,3079.0,3076.4,1.45764463]
[1763310528342,0.1854,3076.5,3076.4,1.45764463]
[1763310528713,0.405504,3077.4,3076.4,1.45764463]
[1763310528714,0.1854,3077.5,3076.4,4.7081093]
[1763310528928,0.1854,3077.5,3076.4,4.708168]
[1763310529130,0.4517,3077.4,3076.4,1.45764463]
[1763310529748,0.4517,3077.4,3076.5,0.03250446]
[1763310529906,0.6371,3078.0,3076.4,7.95874981]
[1763310530241,0.6371,3077.8,3076.5,1.1337408]
[1763310530440,0.6371,3077.8,3076.6,1.23430432]
[1763310530643,0.6371,3078.4,3076.7,0.405504]
[1763310530805,0.6371,3078.4,3076.7,0.897304]
[1763310531002,0.4517,3078.3,3076.7,0.4918]
[1763310531640,0.4517,3078.3,3076.8,6.50026]
[1763310531941,0.4517,3078.3,3076.9,0.699206]
[1763310532132,0.4517,3078.3,3076.9,1.381906]
[1763310532331,0.1854,3078.7,3077.0,0.4918]
[1763310532733,0.6371,3078.7,3077.1,0.405504]
[1763310533042,0.6371,3078.7,3077.0,0.4918]
[1763310533043,0.4517,3078.6,3077.0,0.4918]
[1763310533343,0.4517,3078.6,3076.9,2.0238468]
[1763310533344,0.4517,3078.6,3076.9,0.890106]
[1763310533549,0.4517,3078.6,3077.0,6.4998375]
[1763310533712,0.4517,3078.6,3077.1,0.4918]
[1763310533911,0.405504,3078.5,3076.9,0.890106]
[1763310534217,0.405504,3078.5,3075.2,0.4918]
[1763310534218,0.4517,3078.6,3076.5,6.50089386]
[1763310534567,0.405504,3078.4,3076.0,3.25195526]
[1763310534863,0.405504,3078.4,3076.2,3.2507506]
[1763310535062,0.405504,3078.2,3076.4,4.70919722]
[1763310535344,0.4517,3078.3,3076.5,0.4918]
[1763310535517,0.4517,3078.2,3076.4,7.95974981]
[1763310535724,0.4517,3078.2,3076.4,8.75572479]
[1763310536525,0.4517,3078.2,3076.4,9.24752479]
[1763310536923,0.4517,3078.2,3076.5,1.6255408]
[1763310537317,0.4517,3078.2,3076.5,0.4918]
[1763310537546,0.4517,3078.2,3076.6,3.74208474]
[1763310537912,0.50981312,3077.8,3076.6,3.74208474]
[1763310538114,0.50981312,3077.8,3076.6,4.70057522]
[1763310538316,0.1854,3077.7,3076.6,4.70057522]
[1763310538653,0.1854,3077.7,3076.6,7.9509165]
[1763310539031,0.50981312,3077.8,3076.7,0.4918]
[1763310539229,0.50981312,3077.8,3076.7,1.6255408]
[1763310539556,0.50977747,3078.2,3077.0,1.1337408]
[1763310540058,0.50977747,3078.2,3077.2,0.405504]
[1763310540227,0.50977747,3078.2,3077.1,0.4918]
[1763310540428,0.1854,3079.0,3077.1,0.4918]
[1763310540642,0.21783173,3079.0,3077.1,0.4918]
[1763310540832,0.50968065,3078.9,3077.3,0.405504]
[1763310541228,0.50968065,3078.9,3076.9,16.25012185]
[1763310541229,0.50968065,3078.9,3076.4,4.70918583]
[1763310541230,0.05,3078.5,3076.4,4.70918583]
[1763310541529,0.03243173,3078.4,3076.4,5.20099517]
[1763310541841,0.405504,3078.7,3076.4,5.20099517]
[1763310541842,0.03243173,3078.5,3076.5,6.99269386]
[1763310542042,0.03243173,3078.5,3076.6,2.30392578]
[1763310542370,0.4517,3078.4,3076.6,2.79572578]
[1763310542546,0.4517,3078.4,3076.7,0.4918]
[1763310542747,0.03243173,3078.3,3076.7,0.4918]
[1763310543042,0.03243173,3078.3,3076.4,1.45864463]
[1763310543382,0.4517,3078.2,3076.4,2.59238543]
[1763310543588,0.03243173,3078.1,3076.4,1.96920397]
[1763310543731,0.03243173,3078.1,3076.4,1.45864463]
[1763310544040,0.4517,3078.0,3076.5,1.1337408]
[1763310544248,0.4517,3078.8,3076.7,0.405504]
[1763310544466,0.48413173,3078.7,3076.8,0.4548]
[1763310544630,0.4517,3078.7,3076.9,0.405504]
[1763310544963,0.1854,3079.0,3076.9,0.405504]
[1763310545175,1.9516,3079.4,3077.1,0.405504]
[1763310545331,1.464,3079.4,3077.4,1.5392448]
[1763310545668,1.464,3079.4,3078.3,0.405504]
[1763310545966,1.464,3079.4,3078.2,1.1337408]
[1763310545967,1.464,3079.4,3078.5,0.405504]
[1763310546368,0.1854,3080.4,3078.7,0.405504]
[1763310546670,1.09081635,3081.1,3078.7,0.405504]
[1763310546671,0.65023917,3081.0,3078.7,0.405504]
[1763310546868,0.4876,3081.1,3078.9,0.405504]
[1763310547059,0.4876,3081.1,3079.2,1.5392448]
[1763310547255,0.4876,3081.1,3079.3,0.4548]
[1763310547454,0.1854,3081.4,3079.4,0.405504]
[1763310547671,0.52003173,3081.3,3079.4,6.90024546]
[1763310547988,0.52003173,3081.3,3078.9,3.24784444]
[1763310547989,0.1888,3079.5,3078.4,0.1965]
[1763310548376,0.1888,3079.5,3077.6,3.24919024]
[1763310548377,0.52003173,3079.4,3077.6,3.24919024]
[1763310548592,0.1888,3079.9,3078.1,7.15627861]
[1763310548902,0.79942497,3080.3,3077.7,0.4548]
[1763310548903,0.03243173,3079.8,3077.7,0.4548]
[1763310549050,0.03243173,3079.8,3077.8,0.405504]
[1763310549255,0.52003173,3079.8,3077.8,0.405504]
[1763310549501,0.52003173,3079.8,3078.0,0.405504]
[1763310549794,0.52003173,3079.8,3078.0,3.65436689]
[1763310550003,0.19700092,3079.7,3078.1,0.1571]
[1763310550205,0.19700092,3079.7,3078.0,0.405504]
[1763310550206,0.03243173,3079.6,3078.0,3.24880901]
[1763310550347,0.52003173,3079.6,3078.0,3.24880901]
[1763310550554,0.52003173,3079.6,3078.1,0.1571]
[1763310550880,1.09081635,3080.0,3078.1,0.1571]
[1763310550881,0.4876,3080.2,3078.2,0.405504]
[1763310551072,0.4876,3080.1,3078.2,1.27038567]
[1763310551277,1.28702497,3080.1,3078.2,1.72518567]
[1763310551485,0.002,3079.5,3078.1,0.1571]
[1763310551692,0.002,3079.5,3078.1,1.2908408]
[1763310551997,0.4876,3079.4,3078.1,3.40584967]
[1763310552210,0.4876,3079.4,3078.2,1.1337408]
[1763310552493,0.4876,3079.4,3078.2,2.04249985]
[1763310552701,0.002,3079.5,3078.3,0.860304]
[1763310552903,0.002,3079.5,3078.3,0.89278946]
[1763310553051,0.002,3079.5,3078.5,0.405504]
[1763310553452,0.002,3079.5,3078.7,0.405504]
[1763310553754,0.002,3079.5,3078.9,1.5392448]
[1763310553956,0.002,3079.5,3079.1,0.405504]
[1763310554279,0.002,3079.5,3078.3,0.4548]
[1763310554589,0.002,3079.5,3078.3,1.5885408]
[1763310554754,0.002,3079.5,3078.3,0.4548]
[1763310555089,0.002,3079.5,3078.3,1.5885408]
[1763310555477,0.002,3079.5,3078.4,0.457]
[1763310556078,0.4788,3079.5,3077.9,0.457]
[1763310556277,0.4788,3079.5,3078.2,1.1337408]
[1763310556486,0.50954784,3079.2,3078.2,1.1337408]
[1763310556788,0.4788,3079.7,3078.3,0.457]
[1763310556993,0.50953641,3079.6,3078.3,0.457]
[1763310557299,0.65351441,3080.0,3078.4,0.405504]
[1763310557478,0.65551441,3080.2,3078.4,0.405504]
[1763310557686,0.51147428,3080.2,3078.7,0.405504]
[1763310557885,0.002,3080.2,3078.7,0.405504]
[1763310558080,0.002,3080.2,3079.0,0.405504]
[1763310558592,0.002,3080.2,3079.2,0.405504]
[1763310558767,0.002,3080.2,3080.1,0.603704]
[1763310558969,0.002,3080.2,3080.1,1.060704]
[1763310559491,0.002,3080.2,3080.1,0.603704]
[1763310559692,0.002,3080.2,3080.1,4.98409263]
[1763310559859,0.002,3080.2,3080.1,6.26417834]
[1763310560393,0.002,3080.2,3080.1,2.1944448]
[1763310560605,0.002,3080.2,3080.1,1.1337408]
[1763310560803,0.002,3080.2,3080.1,5.03558863]
[1763310561375,0.002,3080.2,3080.1,1.7889408]
[1763310561575,0.002,3080.2,3080.1,5.44109263]
[1763310561795,0.002,3080.2,3080.1,6.30988711]
[1763310562185,0.65335378,3081.8,3080.2,1.5392448]
[1763310562388,0.1952,3082.0,3080.2,1.9962448]
[1763310562585,0.50917861,3082.0,3080.4,0.405504]
[1763310562785,0.65335378,3082.5,3080.4,0.405504]
[1763310563010,0.1888,3082.8,3080.6,0.405504]
[1763310563480,0.1888,3082.8,3080.5,0.457]
[1763310563481,0.1888,3082.8,3080.8,0.405504]
[1763310563685,0.6676,3082.8,3080.8,0.405504]
[1763310563891,0.6676,3082.8,3081.0,1.5392448]
[1763310564101,0.6676,3082.8,3081.2,0.405504]
[1763310564295,0.4788,3082.7,3081.2,0.405504]
[1763310564474,0.4788,3082.7,3081.4,0.405504]
[1763310564899,0.96626298,3082.7,3081.0,1.1337408]
[1763310565112,0.96626298,3082.7,3081.1,0.405504]
[1763310565113,0.4788,3082.7,3081.1,0.405504]
[1763310565315,0.4788,3082.6,3081.1,0.405504]
[1763310565521,0.4788,3082.6,3081.1,1.99016992]
[1763310565887,0.4788,3082.6,3081.3,1.5392448]
[1763310565888,0.50906507,3082.4,3081.3,1.5392448]
[1763310566674,0.4788,3082.3,3081.0,0.405504]
[1763310567600,0.4788,3082.3,3081.0,0.862504]
[1763310567902,0.4788,3082.3,3081.2,1.5392448]
[1763310568305,0.1888,3082.8,3081.4,0.405504]
[1763310568505,0.1888,3082.8,3081.2,2.3879881]
[1763310568506,0.1888,3082.8,3081.6,0.405504]
[1763310569308,0.1888,3082.8,3081.5,0.457]
[1763310569309,0.4788,3082.7,3081.5,0.457]
[1763310569811,0.002,3082.3,3081.2,0.405504]
[1763310571043,0.4808,3082.3,3081.2,0.405504]
[1763310571458,0.4808,3082.3,3080.8,0.1982]
[1763310571734,0.4808,3082.3,3080.8,3.4440571]
[1763310572317,0.4808,3082.3,3080.8,6.68996725]
[1763310572501,0.4808,3082.3,3080.8,3.4440571]
[1763310573396,0.4808,3082.3,3080.9,0.405504]
[1763310573627,0.4808,3082.3,3080.9,2.70579193]
[1763310573628,0.002,3082.3,3080.9,2.70579193]
[1763310573812,0.002,3082.3,3081.1,0.405504]
[1763310574219,0.002,3082.3,3081.3,0.405504]
[1763310574625,0.002,3082.3,3081.5,0.405504]
[1763310576030,0.002,3082.3,3081.7,0.405504]
[1763310576421,0.002,3082.3,3081.6,0.405504]
[1763310577148,0.002,3082.3,3081.6,0.884104]
[1763310577442,0.002,3082.3,3081.6,0.405504]
[1763310577620,0.002,3082.3,3081.5,3.24516958]
[1763310577822,0.002,3082.3,3081.5,6.27206238]
[1763310578136,0.4621,3082.3,3081.3,0.405504]
[1763310578561,0.4621,3082.3,3081.3,1.5392448]
[1763310578918,0.4621,3082.3,3080.8,0.1982]
[1763310579121,0.4621,3082.3,3081.0,0.4786]
[1763310579647,0.4621,3082.3,3081.1,0.405504]
[1763310579950,0.4621,3082.3,3080.8,0.1982]
[1763310580156,0.4621,3082.3,3080.8,3.44411015]
[1763310580320,0.002,3082.3,3080.9,0.405504]
[1763310580520,0.4621,3082.3,3081.0,0.4786]
[1763310580721,0.4621,3082.3,3080.9,0.405504]
[1763310581444,0.4621,3082.3,3081.1,0.405504]
[1763310582243,0.4621,3082.3,3081.2,3.24548877]
[1763310583654,0.002,3082.3,3081.3,0.405504]
[1763310584212,0.002,3082.3,3081.2,0.405504]
[1763310584213,0.4601,3082.2,3081.2,0.405504]
[1763310584625,0.4601,3082.2,3081.0,0.884104]
[1763310585033,0.002,3082.3,3081.2,0.405504]
[1763310585541,0.002,3082.3,3081.3,0.405504]
[1763310585946,0.002,3082.3,3081.4,0.405504]
[1763310586441,0.002,3082.3,3081.6,0.405504]
[1763310586656,0.002,3082.3,3081.1,0.4786]
[1763310586872,0.002,3082.3,3081.2,0.405504]
[1763310587073,0.002,3082.3,3081.2,0.60728848]
[1763310587239,0.002,3082.3,3081.2,1.08588848]
[1763310587433,0.002,3082.3,3081.4,0.405504]
[1763310588155,0.002,3082.3,3081.3,0.4786]
[1763310588319,0.002,3082.3,3081.4,3.24527812]
[1763310588734,0.002,3082.3,3081.3,3.72497482]
[1763310588936,0.002,3082.3,3081.3,3.72496698]
[1763310589775,0.4621,3082.3,3081.3,3.24636698]
[1763310590145,0.002,3082.3,3081.3,3.24636349]
[1763310590439,0.002,3082.3,3081.4,3.72385801]
[1763310590887,0.002,3082.3,3082.2,0.6378]
[1763310591057,0.002,3082.3,3081.8,0.4786]
[1763310591443,0.4621,3082.3,3081.3,0.001]
[1763310591768,0.1926,3081.9,3081.3,0.001]
[1763310591958,0.4621,3082.3,3081.3,0.001]
[1763310592156,0.002,3082.3,3081.3,6.9703588]
[1763310592358,0.002,3082.3,3081.6,1.1337408]
[1763310592683,0.002,3082.3,3081.4,1.17563588]
[1763310592982,0.002,3082.3,3081.5,1.1337408]
[1763310593484,0.002,3082.3,3081.5,1.6123408]
[1763310593857,0.002,3082.3,3081.6,0.4786]
[1763310594257,0.002,3082.3,3081.7,3.24496219]
[1763310595268,0.002,3082.3,3081.6,6.96872802]
[1763310595461,0.002,3082.3,3081.6,0.4786]
[1763310595662,0.002,3082.3,3081.5,0.4786]
[1763310595863,0.002,3082.3,3081.3,1.1347408]
[1763310596050,0.4601,3082.2,3081.3,4.38007353]
[1763310596682,0.4601,3082.2,3081.3,7.62545697]
[1763310597096,0.002,3082.3,3081.3,8.43586267]
[1763310597302,0.002,3082.3,3081.5,0.405504]
[1763310597699,0.002,3082.3,3081.6,0.4786]
[1763310598102,0.002,3082.3,3082.2,0.6819]
[1763310598295,0.002,3082.3,3082.2,0.1857]
[1763310598499,0.002,3082.3,3081.6,3.72358431]
[1763310598802,0.002,3082.3,3081.6,0.89150883]
[1763310599099,0.002,3082.3,3081.6,3.72365762]
[1763310599299,0.002,3082.3,3081.6,6.96872511]
[1763310599804,0.002,3082.3,3081.6,3.72365762]
[1763310600007,0.002,3082.3,3081.6,6.96872511]
[1763310600312,0.002,3082.3,3081.3,1.9451465]
[1763310600516,0.1926,3081.7,3081.3,0.001]
[1763310600744,0.1926,3081.4,3081.3,0.001]
[1763310601016,0.5708,3081.4,3081.3,0.001]
[1763310601224,1.0301,3081.4,3081.3,0.001]
[1763310602478,1.0301,3081.4,3080.9,0.001]
[1763310602714,1.0301,3081.4,3080.6,0.001]
[1763310602715,0.0046,3081.0,3080.6,0.001]
[1763310602915,0.5663,3080.7,3080.6,0.001]
[1763310603211,0.47776389,3080.7,3079.7,0.001]
[1763310603411,0.74526389,3080.6,3079.7,0.001]
[1763310603708,0.74526389,3080.6,3079.4,0.001]
[1763310603709,0.1926,3079.8,3079.4,0.001]
[1763310604219,0.4601,3079.7,3079.4,0.001]
[1763310605910,0.3815,3079.5,3079.4,0.001]
[1763310606301,0.8408,3079.5,3079.4,0.001]
[1763310607320,0.8408,3079.5,3079.0,0.001]
[1763310607480,0.492,3079.4,3079.0,0.001]
[1763310607682,0.1825,3078.8,3077.0,0.4669]
[1763310607908,0.1825,3078.8,3076.1,3.25082167]
[1763310607909,0.1825,3077.1,3076.1,0.4669]
[1763310608232,0.1825,3077.1,3076.3,3.25058485]
[1763310608443,0.1825,3077.1,3076.1,3.71772979]
[1763310608444,0.1825,3077.1,3076.4,4.70918808]
[1763310608750,0.1825,3077.3,3076.4,4.70918808]
[1763310609431,0.6745,3077.6,3076.5,0.4669]
[1763310609589,0.6745,3077.6,3076.4,1.45864463]
[1763310609792,0.492,3077.5,3076.4,4.70917281]
[1763310609994,0.492,3077.5,3076.4,1.45864463]
[1763310610519,0.492,3077.5,3076.4,4.70919125]
[1763310610721,1.89620923,3078.6,3076.4,4.70919125]
[1763310610722,0.1825,3078.5,3077.4,0.1775]
[1763310610948,0.1926,3079.8,3078.5,0.1945]
[1763310611218,1.463,3080.1,3078.9,8.04178918]
[1763310611452,1.463,3080.1,3079.0,0.83665699]
[1763310611630,1.463,3080.1,3079.1,0.1945]
[1763310611962,1.463,3080.1,3077.8,0.4669]
[1763310611963,0.1825,3079.1,3077.8,0.4669]
[1763310612131,0.1825,3079.1,3078.1,0.1769]
[1763310612452,0.6745,3079.1,3077.6,11.2910705]
[1763310612667,0.6745,3079.1,3077.7,4.46552703]
[1763310612832,0.492,3079.0,3077.5,0.4669]
[1763310613019,0.492,3079.0,3077.1,0.4669]
[1763310613359,0.492,3079.0,3077.2,0.1945]
[1763310613545,0.492,3079.0,3077.2,6.69391504]
[1763310613744,0.492,3079.0,3077.3,2.0061448]
[1763310614057,0.492,3079.0,3077.4,0.87000598]
[1763310614256,0.492,3079.0,3077.4,0.4669]
[1763310614878,0.1825,3079.1,3077.6,1.5392448]
[1763310615020,0.1825,3079.1,3077.6,1.4892448]
[1763310615222,0.1825,3079.1,3077.7,0.4669]
[1763310615463,1.463,3080.5,3077.7,0.4669]
[1763310615628,0.4899,3079.7,3077.7,0.4669]
[1763310616052,0.4899,3079.7,3077.8,1.1337408]
[1763310616256,0.4899,3079.7,3077.9,0.87918292]
[1763310616564,0.4899,3079.7,3078.0,0.4706]
[1763310616938,0.4899,3079.7,3078.1,0.1599]
[1763310617492,0.4899,3079.7,3077.6,3.24928215]
[1763310617791,0.4899,3079.7,3077.4,3.24949632]
[1763310617956,0.405504,3079.6,3077.4,0.59176383]
[1763310618147,0.405504,3079.6,3077.3,3.24959953]
[1763310618345,0.405504,3079.4,3077.3,6.96980145]
[1763310618592,0.405504,3079.4,3077.3,6.49920145]
[1763310618800,0.4899,3079.3,3077.5,6.49878146]
[1763310619094,0.4899,3079.3,3077.2,0.1945]
[1763310619095,0.4899,3079.3,3077.3,1.6043408]
[1763310619378,0.4899,3079.3,3077.5,0.405504]
[1763310619881,0.4899,3079.3,3077.4,1.30042527]
[1763310619882,0.4899,3079.3,3077.7,0.405504]
[1763310620044,0.4899,3079.3,3077.6,0.4706]
[1763310620250,0.50955459,3079.9,3077.6,0.4706]
[1763310620754,0.50955459,3079.9,3077.7,6.49835916]
[1763310620755,0.4899,3079.8,3077.7,6.49835916]
[1763310620961,0.4899,3079.8,3077.8,0.69689592]
[1763310621158,0.4899,3079.8,3077.8,1.1337408]
[1763310621370,0.4899,3079.8,3077.9,0.4706]
[1763310622002,0.4899,3079.8,3078.0,0.405504]
[1763310622598,0.4899,3079.8,3078.1,0.1674]
[1763310623011,0.4899,3079.8,3078.2,6.9679036]
[1763310623297,0.4899,3079.8,3078.3,0.71353036]
[1763310623507,0.4899,3079.8,3078.3,1.18413036]
[1763310623707,0.50955459,3079.9,3078.4,0.876104]
[1763310623908,0.1825,3080.0,3078.4,0.876104]
[1763310624211,0.50946945,3079.6,3078.3,2.31787116]
[1763310624414,0.4899,3079.9,3078.4,1.0272523]
[1763310624626,0.1825,3080.0,3078.5,0.405504]
[1763310624627,0.002,3079.7,3078.5,0.405504]
[1763310624918,0.002,3079.7,3078.5,0.876104]
[1763310625112,0.002,3079.7,3078.6,10.21528913]
[1763310625524,0.002,3079.7,3079.6,0.187]
[1763310625678,0.002,3079.7,3079.6,0.6576]
[1763310627106,0.002,3079.7,3079.6,5.03851575]
[1763310627718,0.002,3079.7,3079.1,0.4706]
[1763310627880,0.002,3079.7,3076.3,1.953]
[1763310627881,0.002,3079.7,3078.6,0.4706]
[1763310628578,0.002,3079.7,3078.4,3.24844074]
[1763310628781,0.002,3079.7,3077.9,7.19118843]
[1763310628782,0.4899,3079.6,3078.1,3.88670856]
[1763310628982,0.4899,3079.6,3078.1,3.41610856]
[1763310629512,0.4899,3079.6,3078.1,6.66486591]
[1763310629687,0.4899,3079.6,3078.1,7.65624438]
[1763310630289,0.4899,3079.6,3078.1,11.37560173]
[1763310630605,0.4899,3079.6,3078.1,8.12684438]
[1763310630805,0.4899,3079.6,3078.2,0.4706]
[1763310631120,0.4899,3079.6,3078.3,6.49709254]
[1763310631424,0.002,3079.7,3078.3,10.88315677]
[1763310631596,0.002,3079.7,3078.4,1.6043408]
[1763310631797,0.002,3079.7,3078.5,0.405504]
[1763310631999,0.002,3079.7,3078.5,0.876104]
[1763310632321,0.4919,3079.7,3078.4,1.6043408]
[1763310632685,0.4919,3079.7,3078.2,1.1337408]
[1763310633023,0.4919,3079.7,3077.6,6.49855284]
[1763310633024,8.32597264,3079.6,3077.6,6.49855284]
[1763310633233,8.32597264,3079.6,3077.6,1.1337408]
[1763310633234,1.8193798,3079.5,3077.6,1.1337408]
[1763310633524,0.28384696,3079.4,3077.6,1.1337408]
[1763310633713,1.42749254,3079.4,3077.5,6.49978146]
[1763310633899,0.28384696,3079.3,3077.5,6.49978146]
[1763310634106,0.4899,3079.2,3077.6,1.1337408]
[1763310634298,0.4899,3079.2,3077.6,0.76335223]
[1763310634499,0.4899,3079.2,3077.5,1.1347408]
[1763310634922,0.4899,3079.2,3077.5,0.001]
[1763310635089,0.4899,3079.2,3077.6,6.4985703]
[1763310636228,0.4899,3079.2,3077.6,3.24928515]
[1763310636520,0.4899,3079.2,3077.5,1.6054408]
[1763310636521,0.28384665,3079.1,3077.5,0.001]
[1763310636895,0.4548,3079.0,3077.5,0.4717]
[1763310637228,0.4548,3079.0,3077.5,6.97044564]
[1763310637402,0.1909,3078.9,3077.5,7.6674902]
[1763310637602,0.6457,3078.9,3077.5,3.25035491]
[1763310638003,0.4548,3078.8,3077.5,3.25035491]
[1763310638415,0.65374558,3079.0,3077.6,0.50319285]
[1763310638614,1.10898345,3079.3,3077.6,1.6044408]
[1763310638929,0.4548,3079.3,3077.7,0.405504]
[1763310639091,0.65624105,3079.7,3077.7,0.405504]
[1763310639092,0.65624105,3079.7,3077.9,0.405504]
[1763310639296,0.4548,3079.6,3078.1,1.1337408]
[1763310639644,1.1337408,3079.4,3077.5,0.001]
[1763310639805,0.28420623,3079.3,3077.6,0.4707]
[1763310640006,0.20721881,3079.2,3077.7,0.69704815]
[1763310640205,0.65424105,3079.2,3077.8,0.405504]
[1763310640453,0.65424105,3079.5,3077.9,1.16623048]
[1763310640751,0.4568,3079.7,3078.0,0.405504]
[1763310641046,0.50953734,3079.5,3078.0,0.876204]
[1763310641246,0.50953734,3079.5,3078.2,6.4973036]
[1763310641539,0.50953734,3079.5,3078.3,1.80061116]
[1763310641756,0.002,3079.7,3078.4,0.4707]
[1763310642664,0.4568,3079.7,3078.4,0.4707]
[1763310643004,0.4568,3079.7,3078.1,0.1714]
[1763310643166,0.28435542,3079.6,3078.1,3.4201526]
[1763310643346,0.28435542,3079.6,3078.2,3.2486518]
[1763310643554,0.4548,3079.5,3078.2,0.4707]
[1763310643897,0.28435542,3079.4,3078.1,6.66887607]
[1763310644106,0.28435542,3079.4,3078.1,3.42014436]
[1763310644246,0.4548,3079.3,3078.1,3.42014436]
[1763310644449,0.4548,3079.3,3078.1,7.85357239]
[1763310644647,0.4548,3079.3,3078.2,0.4707]
[1763310645677,0.4548,3079.3,3078.3,3.24854627]
[1763310646000,0.4548,3079.3,3078.1,0.1714]
[1763310646205,0.4548,3079.3,3078.1,6.66884022]
[1763310646416,0.002,3079.7,3078.2,2.20612882]
[1763310646903,0.4548,3079.6,3078.2,2.20612882]
[1763310647088,0.002,3079.7,3078.2,2.20612882]
[1763310647781,0.002,3079.7,3078.4,10.15082622]
[1763310647963,0.4548,3079.6,3078.5,0.4707]
[1763310648168,0.4548,3079.6,3078.5,1.20800855]
[1763310649168,0.4548,3079.6,3078.3,3.24854545]
[1763310649366,0.4548,3079.6,3078.3,6.49709172]
[1763310649567,0.4548,3079.6,3078.4,0.4707]
[1763310649801,0.4548,3079.6,3078.5,3.24833522]
[1763310650173,0.4548,3079.6,3078.5,6.49667044]
[1763310650405,0.4548,3079.6,3078.5,7.19340748]
[1763310650778,0.002,3079.7,3078.6,0.4707]
[1763310651127,0.002,3079.7,3079.6,0.4763]
[1763310651882,0.002,3079.7,3079.6,5.32791575]
[1763310652310,0.002,3079.7,3079.6,4.85721575]
[1763310652482,0.002,3079.7,3078.8,0.4707]
[1763310652682,0.002,3079.7,3078.8,1.13491299]
[1763310652993,0.002,3079.7,3078.8,0.4707]
[1763310653194,0.002,3079.7,3078.6,1.1337408]
[1763310653195,0.002,3079.7,3078.9,0.4707]
[1763310653985,0.4548,3079.6,3078.5,0.69673704]
[1763310654185,0.4548,3079.6,3078.6,1.1337408]
[1763310654742,0.4548,3079.6,3078.5,3.24831316]
[1763310655211,0.4548,3079.6,3078.4,3.24835172]
[1763310655212,0.4548,3079.6,3078.4,6.96749246]
[1763310655515,0.4548,3079.6,3078.3,1.1337408]
[1763310655897,0.4548,3079.6,3078.4,3.24844074]
[1763310656699,0.4548,3079.6,3078.3,6.49707589]
[1763310657008,0.4548,3079.6,3078.3,1.1337408]
[1763310657797,0.4548,3079.6,3078.3,3.24850767]
[1763310658001,0.4548,3079.6,3078.3,1.1337408]
[1763310658219,0.4548,3079.6,3077.5,0.001]
[1763310658407,0.4548,3079.6,3077.6,6.96916659]
[1763310658602,0.4548,3079.6,3077.7,1.10252066]
[1763310658915,0.4548,3079.6,3077.7,2.70696146]
[1763310659222,0.4548,3079.6,3077.5,8.04312568]
[1763310659223,0.1909,3079.0,3077.5,0.001]
[1763310659402,0.1909,3079.0,3078.1,0.001]
[1763310659712,0.4548,3078.9,3078.1,0.001]
[1763310659886,0.4723,3078.2,3078.1,0.001]
[1763310660293,0.9271,3078.2,3078.1,0.001]
[1763310661026,0.4548,3078.6,3078.1,0.001]
[1763310663214,0.4723,3078.2,3078.1,0.001]
[1763310663402,0.4548,3078.6,3078.1,0.001]
[1763310663609,0.4723,3078.2,3078.1,0.001]